bitfinex-derivatives/quotes_SOLF0:USTF0_20250730
["timestamp","ask_amount","ask_price","bid_price","bid_amount"]
[1753894460264,3.23,178.68,178.6,4.32902654]
[1753894460463,3.23,178.66,178.6,107.04902654]
[1753894460859,3.23,178.62,178.6,107.04902654]
[1753894461262,5.598,178.64,178.6,107.04902654]
[1753894461463,3.23,178.66,178.6,107.04902654]
[1753894461963,3.23,178.63,178.6,107.04902654]
[1753894462360,3.23,178.63,178.6,112.64802654]
[1753894462566,3.23,178.63,178.6,107.04902654]
[1753894463266,5.5983,178.63,178.6,112.64812654]
[1753894463467,3.23,178.61,178.6,107.04902654]
[1753894463866,3.23,178.61,178.6,112.64812654]
[1753894464868,3.23,178.61,178.6,108.3191]
[1753894467368,3.23,178.61,178.6,102.72]
[1753894467768,8.8288,178.61,178.6,102.72]
[1753894467969,3.23,178.61,178.52,380.56902654]
[1753894468170,4.32902654,178.6,178.53,102.72]
[1753894468365,3.23,178.57,178.55,5.6005]
[1753894469369,3.23,178.57,178.56,5.6004]
[1753894470969,3.23,178.57,178.55,5.6006]
[1753894471270,3.23,178.57,178.49,136.4098074]
[1753894471465,3.23,178.57,178.5,102.72]
[1753894471667,3.27,178.54,178.51,5.6018]
[1753894471861,4.32902654,178.58,178.5,102.72]
[1753894472062,5.6012,178.54,178.5,5.602]
[1753894472266,3.27,178.53,178.5,102.72]
[1753894472873,3.27,178.53,178.5,108.3219]
[1753894473574,3.27,178.53,178.51,5.6018]
[1753894474873,3.27,178.53,178.52,5.6016]
[1753894485780,3.27,178.53,178.5,102.72]
[1753894486279,5.6019,178.52,178.5,102.72]
[1753894486483,3.27,178.51,178.5,102.72]
[1753894486880,3.27,178.51,178.5,108.3223]
[1753894487281,3.27,178.52,178.5,102.72]
[1753894487583,3.27,178.52,178.51,5.6017]
[1753894487787,3.27,178.55,178.5,102.72]
[1753894488086,8.8709,178.55,178.52,5.6015]
[1753894488284,3.27,178.54,178.52,5.6015]
[1753894489881,3.27,178.54,178.53,5.6013]
[1753894493288,3.27,178.54,178.52,5.6015]
[1753894493788,3.27,178.54,178.5,102.72]
[1753894494085,3.27,178.54,178.51,5.6019]
[1753894497292,3.27,178.54,178.52,5.6016]
[1753894497492,3.27,178.58,178.5,107.04902654]
[1753894497892,5.6001,178.57,178.53,5.6011]
[1753894498194,3.27,178.56,178.53,5.6011]
[1753894498493,3.27,178.56,178.54,5.601]
[1753894500400,8.8706,178.56,178.52,5.6016]
[1753894500594,3.08,178.55,178.5,102.72]
[1753894500795,7.40902654,178.55,178.5,102.72]
[1753894500997,3.08,178.51,178.48,5.6028]
[1753894501297,3.08,178.54,178.48,4.32902654]
[1753894501700,3.08,178.54,178.51,5.6017]
[1753894502699,3.08,178.53,178.5,5.6021]
[1753894504497,3.08,178.53,178.49,5.6025]
[1753894504701,5.6015,178.53,178.48,4.32902654]
[1753894504998,3.08,178.52,178.48,4.32902654]
[1753894505200,3.08,178.52,178.49,5.6025]
[1753894505401,3.08,178.52,178.48,4.32902654]
[1753894505899,3.08,178.52,178.5,5.6022]
[1753894507101,3.08,178.52,178.51,5.6019]
[1753894514104,3.08,178.55,178.48,4.32902654]
[1753894516503,3.08,178.55,178.52,5.6014]
[1753894516705,3.08,178.55,178.48,4.32902654]
[1753894517201,3.08,178.55,178.53,5.6012]
[1753894518406,3.08,178.54,178.52,5.6016]
[1753894521711,3.08,178.53,178.52,5.6016]
[1753894525116,3.08,178.53,178.49,2.78411014]
[1753894525617,8.6814,178.53,178.5,5.6021]
[1753894525816,3.08,178.52,178.49,2.78411014]
[1753894526818,3.08,178.52,178.51,5.6019]
[1753894527317,3.08,178.55,178.51,2.78411014]
[1753894527516,2.78411014,178.57,178.51,2.78411014]
[1753894527814,3.08,178.53,178.51,2.78411014]
[1753894528016,3.08,178.54,178.52,5.6013]
[1753894528319,3.08,178.54,178.51,2.78411014]
[1753894529020,3.08,178.54,178.5,2.78411014]
[1753894538323,2.78411014,178.51,178.46,2.78411014]
[1753894538626,3.1,178.46,178.42,2.78411014]
[1753894539229,3.1,178.48,178.44,2.78411014]
[1753894539529,3.1,178.47,178.46,2.78411014]
[1753894540122,3.1,178.49,178.46,2.78411014]
[1753894540326,3.1,178.51,178.48,2.78411014]
[1753894540526,3.1,178.5,178.48,2.78411014]
[1753894541928,3.1,178.53,178.48,2.78411014]
[1753894542128,2.78411014,178.52,178.47,2.78411014]
[1753894542331,3.1,178.49,178.45,105.48411014]
[1753894546535,3.1,178.49,178.45,102.7]
[1753894546836,3.1,178.47,178.43,2.78411014]
[1753894548236,3.1,178.47,178.41,102.7]
[1753894548535,3.1,178.47,178.42,2.78411014]
[1753894552136,2.78411014,178.5,178.46,2.78411014]
[1753894552336,3.1,178.51,178.46,2.78411014]
[1753894554334,3.1,178.51,178.48,2.78411014]
[1753894554545,3.1,178.5,178.48,2.78411014]
[1753894555237,3.1,178.52,178.48,2.78411014]
[1753894557239,3.1,178.5,178.46,102.7]
[1753894557438,3.1,178.5,178.46,105.48411014]
[1753894560742,3.1,178.5,178.46,102.7]
[1753894563837,4.35202906,178.49,178.41,5.3274474]
[1753894564132,3.11,178.48,178.42,102.7]
[1753894567838,3.11,178.5,178.43,4.35202906]
[1753894568044,3.11,178.5,178.45,4.35202906]
[1753894568738,3.11,178.5,178.48,5.6026]
[1753894568939,3.11,178.5,178.45,4.35202906]
[1753894569242,3.11,178.5,178.48,5.6027]
[1753894572544,8.7122,178.5,178.47,5.603]
[1753894572745,3.11,178.49,178.47,5.603]
[1753894573146,3.11,178.49,178.43,4.35202906]
[1753894573647,3.11,178.49,178.48,5.6028]
[1753894574748,3.11,178.53,178.48,5.6028]
[1753894574948,3.11,178.5,178.48,5.6028]
[1753894576448,3.11,178.51,178.49,5.6024]
[1753894576749,3.11,178.51,178.45,4.35202906]
[1753894577250,3.11,178.5,178.45,4.35202906]
[1753894578249,3.11,178.5,178.48,5.6026]
[1753894578449,8.7121,178.5,178.48,5.6026]
[1753894578651,3.11,178.49,178.48,5.6026]
[1753894580550,3.11,178.49,178.47,5.6029]
[1753894581251,3.11,178.48,178.46,5.6033]
[1753894582260,5.6022,178.5,178.47,5.6031]
[1753894582449,3.11,178.49,178.47,5.6031]
[1753894583160,3.11,178.49,178.48,5.6028]
[1753894583459,3.11,178.49,178.46,2.78566053]
[1753894584160,2.78566053,178.47,178.41,0.97541834]
[1753894584359,3.11,178.44,178.4,481.96566053]
[1753894584660,8.714,178.44,178.41,5.6049]
[1753894585160,3.11,178.44,178.4,481.96566053]
[1753894585362,3.11,178.43,178.4,481.96566053]
[1753894585552,11.2017,178.55,178.42,2.78566053]
[1753894585756,3.11,178.44,178.42,2.78566053]
[1753894586258,3.11,178.44,178.4,377.49551404]
[1753894586458,3.11,178.44,178.4,481.96566053]
[1753894586861,3.11,178.42,178.4,484.7852]
[1753894587863,3.11,178.42,178.41,5.605]
[1753894588063,5.6042,178.44,178.41,5.605]
[1753894588662,3.18,178.43,178.41,5.605]
[1753894589059,3.18,178.44,178.41,4.35578822]
[1753894589262,4.35578822,178.5,178.41,4.35578822]
[1753894589560,4.35578822,178.5,178.4,103.63551404]
[1753894589561,3.18,178.49,178.43,4.35578822]
[1753894589762,3.18,178.48,178.44,102.66]
[1753894590064,3.18,178.47,178.45,4.35578822]
[1753894590267,3.18,178.48,178.45,4.35578822]
[1753894590467,3.18,178.48,178.47,4.35578822]
[1753894590764,3.18,178.57,178.47,4.35578822]
[1753894590968,3.18,178.57,178.5,4.35578822]
[1753894591269,3.18,178.56,178.52,4.35578822]
[1753894591566,3.18,178.55,178.52,4.35578822]
[1753894591763,3.18,178.54,178.53,5.6012]
[1753894592465,3.18,178.59,178.52,4.35578822]
[1753894592965,3.18,178.59,178.52,9.95708822]
[1753894593367,210.13029292,178.6,178.51,102.66]
[1753894593566,3.18,178.57,178.51,102.66]
[1753894594464,4.35578822,178.56,178.49,4.35578822]
[1753894594769,3.18,178.55,178.49,102.66]
[1753894595068,5.6017,178.52,178.49,102.66]
[1753894595268,4.35578822,178.57,178.49,107.01578822]
[1753894595469,3.18,178.52,178.49,107.01578822]
[1753894595770,3.18,178.52,178.5,5.6021]
[1753894596265,5.6011,178.54,178.5,5.6021]
[1753894596468,3.18,178.51,178.5,5.6021]
[1753894596770,3.18,178.51,178.49,112.61818822]
[1753894597770,3.18,178.5,178.49,112.61818822]
[1753894598672,3.18,178.5,178.49,107.01578822]
[1753894599171,8.7821,178.5,178.49,102.66]
[1753894599474,3.18,178.49,178.45,4.35578822]
[1753894599672,3.18,178.49,178.46,102.64]
[1753894599870,3.18,178.47,178.46,102.64]
[1753894605379,8.7831,178.47,178.46,102.64]
[1753894606579,3.18,178.47,178.46,102.64]
[1753894608481,8.7831,178.47,178.46,102.64]
[1753894608981,3.18,178.46,178.42,4.35578822]
[1753894609279,8.7836,178.46,178.43,108.2443]
[1753894609482,5.6036,178.46,178.43,108.2443]
[1753894609781,3.18,178.45,178.43,108.2443]
[1753894610682,5.6036,178.46,178.43,108.2443]
[1753894610880,8.7836,178.46,178.44,5.604]
[1753894611080,3.18,178.46,178.44,5.604]
[1753894611282,3.18,178.45,178.44,5.604]
[1753894611479,3.18,178.46,178.44,5.604]
[1753894614085,3.18,178.47,178.45,5.6036]
[1753894614285,3.18,178.47,178.46,102.64]
[1753894615285,3.18,178.47,178.46,108.2434]
[1753894615686,3.18,178.47,178.46,102.64]
[1753894617687,3.18,178.47,178.46,108.2434]
[1753894619189,3.25,178.49,178.46,106.99578822]
[1753894619890,3.25,178.5,178.46,106.99578822]
[1753894620083,3.25,178.55,178.46,106.99578822]
[1753894620483,3.25,178.55,178.48,5.6026]
[1753894620984,5.6022,178.5,178.48,5.6026]
[1753894621190,3.25,178.49,178.48,5.6026]
[1753894622487,3.25,178.49,178.48,108.2426]
[1753894624593,3.25,178.51,178.5,5.602]
[1753894624789,4.35578822,178.58,178.5,4.35578822]
[1753894624985,3.25,178.57,178.51,102.62]
[1753894625185,3.25,178.57,178.52,5.6013]
[1753894625587,5.6003,178.56,178.52,4.35578822]
[1753894625888,3.25,178.54,178.52,4.35578822]
[1753894626086,3.25,178.55,178.54,5.6006]
[1753894626286,3.25,178.55,178.54,9.95638822]
[1753894627593,3.25,178.55,178.52,5.6014]
[1753894627791,3.25,178.59,178.53,102.62]
[1753894628286,5.6009,178.54,178.53,102.62]
[1753894628487,8.8509,178.54,178.53,102.62]
[1753894629188,3.25,178.54,178.53,102.62]
[1753894630293,3.25,178.54,178.53,108.2212]
[1753894631784,3.25,178.56,178.55,5.6005]
[1753894632896,3.25,178.56,178.54,9.95648822]
[1753894633296,3.25,178.56,178.54,4.35578822]
[1753894633795,3.25,178.55,178.54,9.95658822]
[1753894635095,5.5998,178.58,178.54,4.35578822]
[1753894635096,3.25,178.57,178.54,4.35578822]
[1753894635895,5.5993,178.59,178.54,4.35578822]
[1753894636098,3.25,178.56,178.55,5.6006]
[1753894636296,3.25,178.57,178.54,4.35578822]
[1753894636595,3.25,178.57,178.56,4.35578822]
[1753894636796,3.25,178.57,178.56,9.95588822]
[1753894636997,4.35578822,178.65,178.56,4.35578822]
[1753894637296,5.5989,178.61,178.58,5.5994]
[1753894637492,3.25,178.6,178.58,5.5994]
[1753894638696,3.25,178.59,178.57,108.1998]
[1753894639497,3.25,178.59,178.58,5.5996]
[1753894642100,5.5988,178.61,178.58,5.5996]
[1753894642296,3.25,178.6,178.58,5.5996]
[1753894642496,5.5988,178.61,178.59,5.5993]
[1753894642701,3.25,178.6,178.58,102.58]
[1753894643104,8.8491,178.6,178.58,102.58]
[1753894643302,3.25,178.59,178.58,102.58]
[1753894643705,3.25,178.59,178.5,376.48]
[1753894643897,3.25,178.59,178.54,4.35578822]
[1753894644099,3.25,178.59,178.55,102.58]
[1753894644504,5.5997,178.58,178.55,102.58]
[1753894644706,3.25,178.57,178.55,102.58]
[1753894645104,8.85,178.57,178.55,108.1805]
[1753894645606,8.8503,178.56,178.55,102.58]
[1753894647001,5.601,178.54,178.52,102.56]
[1753894647202,3.25,178.53,178.52,102.56]
[1753894647502,3.25,178.53,178.52,108.1615]
[1753894649709,3.25,178.53,178.52,102.56]
[1753894650206,3.25,178.53,178.52,108.1615]
[1753894650909,4.35578822,178.59,178.54,5.6008]
[1753894651103,3.28,178.55,178.54,5.6008]
[1753894651304,3.28,178.55,178.54,108.1608]
[1753894655713,3.28,178.55,178.54,102.56]
[1753894656712,8.8806,178.55,178.54,102.56]
[1753894659819,3.28,178.51,178.47,4.35578822]
[1753894660013,3.28,178.51,178.48,102.56]
[1753894660214,8.882,178.51,178.48,108.1625]
[1753894660408,4.35578822,178.55,178.48,102.56]
[1753894660716,3.28,178.5,178.48,102.56]
[1753894660917,3.28,178.5,178.48,108.1626]
[1753894661618,3.28,178.5,178.49,5.6024]
[1753894661813,5.6016,178.52,178.49,5.6024]
[1753894662220,3.28,178.51,178.49,5.6024]
[1753894662920,8.8818,178.51,178.48,108.1626]
[1753894663120,3.28,178.51,178.48,102.56]
[1753894663713,8.8824,178.49,178.48,102.56]
[1753894670525,3.28,178.49,178.48,102.56]
[1753894674427,5.6023,178.5,178.48,102.56]
[1753894674721,3.28,178.52,178.48,102.56]
[1753894674926,7.63578822,178.59,178.49,4.35578822]
[1753894675127,4.35578822,178.57,178.49,4.35578822]
[1753894675328,3.28,178.56,178.49,4.35578822]
[1753894676222,5.6009,178.54,178.5,5.6021]
[1753894676425,3.28,178.53,178.51,102.58]
[1753894677121,3.28,178.52,178.51,102.58]
[1753894677425,3.28,178.53,178.51,108.1818]
[1753894678426,3.28,178.52,178.51,108.1818]
[1753894679229,5.6012,178.53,178.51,108.1818]
[1753894679430,3.27,178.53,178.51,108.1818]
[1753894679725,4.35578822,178.59,178.51,102.58]
[1753894679926,5.6003,178.56,178.51,102.58]
[1753894680130,3.27,178.58,178.51,102.58]
[1753894680733,5.6014,178.53,178.51,102.58]
[1753894681227,8.8715,178.52,178.51,102.58]
[1753894681434,3.27,178.51,178.49,4.35578822]
[1753894681631,3.27,178.51,178.5,102.56]
[1753894681835,8.8718,178.51,178.5,102.56]
[1753894683337,3.27,178.53,178.47,102.56]
[1753894683732,4.35578822,178.52,178.47,102.56]
[1753894684030,3.27,178.51,178.47,102.56]
[1753894684230,8.8728,178.48,178.47,102.56]
[1753894684538,3.27,178.47,178.42,102.56]
[1753894684735,5.604,178.45,178.42,102.56]
[1753894684934,3.27,178.44,178.42,102.56]
[1753894685133,3.27,178.43,178.42,102.56]
[1753894685737,3.27,178.45,178.42,102.56]
[1753894685929,3.27,178.44,178.42,102.56]
[1753894686132,3.27,178.44,178.42,112.52008822]
[1753894686333,3.27,178.46,178.42,106.91578822]
[1753894686532,3.27,178.48,178.44,4.35578822]
[1753894686732,8.8733,178.47,178.43,5.6041]
[1753894686934,3.27,178.46,178.43,9.95988822]
[1753894687236,5.6033,178.47,178.44,5.604]
[1753894687438,3.27,178.45,178.44,5.604]
[1753894687640,5.6033,178.47,178.44,5.604]
[1753894687835,3.27,178.46,178.44,5.604]
[1753894688134,3.27,178.46,178.45,5.6037]
[1753894688340,3.27,178.47,178.45,5.6037]
[1753894688740,3.27,178.47,178.46,108.1834]
[1753894688940,3.27,178.48,178.46,108.1834]
[1753894689738,3.27,178.47,178.46,108.1834]
[1753894691746,5.6025,178.49,178.47,5.6031]
[1753894692040,3.27,178.53,178.46,102.58]
[1753894692240,3.27,178.53,178.46,108.1833]
[1753894692442,3.27,178.48,178.46,108.1833]
[1753894692843,5.6026,178.49,178.46,108.1833]
[1753894693037,3.27,178.47,178.46,108.1833]
[1753894693845,8.8726,178.49,178.47,5.603]
[1753894694043,3.27,178.48,178.47,5.603]
[1753894694546,3.27,178.48,178.47,9.95878822]
[1753894694745,5.6021,178.51,178.48,5.6027]
[1753894694947,3.27,178.5,178.49,102.58]
[1753894695142,3.27,178.5,178.49,106.93578822]
[1753894696743,8.8721,178.5,178.49,106.93578822]
[1753894697047,8.8721,178.5,178.49,102.58]
[1753894698149,3.27,178.5,178.49,102.58]
[1753894698739,8.8721,178.5,178.49,102.58]
[1753894699039,3.27,178.5,178.49,102.58]
[1753894703648,8.8721,178.5,178.49,102.58]
[1753894703950,3.27,178.5,178.49,102.58]
[1753894704150,3.27,178.5,178.47,5.6029]
[1753894704449,3.27,178.5,178.47,102.56]
[1753894704950,3.27,178.5,178.47,108.163]
[1753894705754,8.8722,178.5,178.47,102.56]
[1753894706547,5.6025,178.49,178.46,5.6033]
[1753894706755,3.27,178.48,178.47,102.56]
[1753894707153,3.27,178.52,178.45,4.35578822]
[1753894707854,3.27,178.47,178.45,4.35578822]
[1753894708356,8.8731,178.47,178.45,4.35578822]
[1753894708548,5.6031,178.47,178.45,4.35578822]
[1753894708752,3.08,178.46,178.45,4.35578822]
[1753894710251,8.6834,178.46,178.45,4.35578822]
[1753894710656,3.08,178.46,178.45,4.35578822]
[1753894711957,3.08,178.46,178.45,9.95948822]
[1753894712957,3.08,178.46,178.45,4.35578822]
[1753894713659,3.08,178.46,178.45,9.95948822]
[1753894713850,3.08,178.52,178.45,9.95948822]
[1753894714049,3.08,178.52,178.45,4.35578822]
[1753894714861,3.08,178.52,178.47,4.35578822]
[1753894715050,3.08,178.52,178.48,102.56]
[1753894715860,5.6021,178.5,178.48,102.56]
[1753894716159,3.08,178.49,178.48,102.56]
[1753894716858,3.08,178.5,178.48,102.56]
[1753894717061,3.08,178.56,178.49,5.6022]
[1753894717860,3.08,178.56,178.49,9.95798822]
[1753894718061,5.6015,178.53,178.49,9.95798822]
[1753894718357,3.08,178.52,178.49,9.95798822]
[1753894719563,5.6015,178.53,178.49,9.95798822]
[1753894719763,3.08,178.52,178.49,9.95798822]
[1753894721263,8.6816,178.52,178.49,9.95798822]
[1753894721564,3.08,178.51,178.49,9.95798822]
[1753894722669,5.6013,178.53,178.5,5.6021]
[1753894722968,3.08,178.52,178.51,4.35578822]
[1753894723468,5.6011,178.54,178.51,4.35578822]
[1753894723669,3.08,178.52,178.51,4.35578822]
[1753894724068,3.08,178.52,178.51,9.95758822]
[1753894729078,5.6006,178.55,178.52,5.6012]
[1753894729374,3.08,178.53,178.52,108.1212]
[1753894729876,136.75651435,178.6,178.55,5.6004]
[1753894730069,136.75651435,178.6,178.56,4.35578822]
[1753894730272,3.08,178.59,178.56,4.35578822]
[1753894730473,3.08,178.58,178.56,9.95588822]
[1753894730674,136.75651435,178.6,178.56,106.87578822]
[1753894730868,3.08,178.57,178.56,106.87578822]
[1753894731074,3.08,178.59,178.57,5.5997]
[1753894731679,3.08,178.59,178.58,9.95538822]
[1753894740280,3.08,178.59,178.58,5.5996]
[1753894741383,3.08,178.59,178.57,9.95558822]
[1753894741884,5.5993,178.59,178.57,4.35578822]
[1753894742083,3.29,178.58,178.57,4.35578822]
[1753894742486,3.29,178.58,178.56,112.47588822]
[1753894742783,3.29,178.58,178.56,106.87578822]
[1753894743185,3.29,178.58,178.56,4.35578822]
[1753894743483,3.29,178.58,178.57,5.5999]
[1753894745987,3.29,178.58,178.57,108.0599]
[1753894749189,4.35578822,178.66,178.61,5.5985]
[1753894749390,3.29,178.65,178.61,5.5985]
[1753894749590,5.5979,178.64,178.61,5.5985]
[1753894749790,3.29,178.63,178.61,5.5985]
[1753894750590,3.29,178.63,178.62,5.5984]
[1753894755390,143.06069753,178.68,178.62,4.35578822]
[1753894755692,3.29,178.67,178.65,4.35578822]
[1753894755989,3.29,178.67,178.65,5.5972]
[1753894756592,3.29,178.67,178.66,5.5971]
[1753894758084,3.29,178.67,178.66,102.44]
[1753894758289,3.29,178.67,178.62,4.35578822]
[1753894758590,3.29,178.67,178.63,102.42]
[1753894759493,3.29,178.65,178.63,108.018]
[1753894759689,3.29,178.65,178.63,102.42]
[1753894759891,8.8875,178.65,178.63,102.42]
[1753894760091,3.29,178.64,178.63,102.42]
[1753894761796,3.29,178.67,178.63,102.42]
[1753894762095,3.29,178.67,178.64,5.5975]
[1753894762798,3.29,178.66,178.63,102.42]
[1753894763294,5.5975,178.65,178.63,102.42]
[1753894763495,3.29,178.64,178.63,102.42]
[1753894764395,3.29,178.64,178.63,108.018]
[1753894764695,3.29,178.64,178.63,102.42]
[1753894765694,8.8877,178.64,178.63,102.42]
[1753894767297,3.29,178.64,178.63,102.42]
[1753894768401,3.29,178.64,178.62,9.95398822]
[1753894768698,3.29,178.64,178.63,102.4]
[1753894769794,8.8877,178.64,178.6,4.35578822]
[1753894770001,3.12,178.66,178.61,102.4]
[1753894770498,3.12,178.64,178.62,5.5983]
[1753894770898,3.12,178.64,178.61,102.4]
[1753894771099,3.12,178.64,178.62,5.5984]
[1753894772199,3.12,178.64,178.63,5.598]
[1753894774101,5.5969,178.67,178.63,5.598]
[1753894774302,8.7169,178.67,178.63,5.598]
[1753894775401,5.5971,178.66,178.63,5.598]
[1753894775603,3.12,178.65,178.63,5.598]
[1753894776101,3.12,178.67,178.61,102.4]
[1753894777802,5.5979,178.64,178.61,107.9985]
[1753894778003,3.12,178.63,178.61,107.9985]
[1753894778605,5.5975,178.65,178.62,5.5984]
[1753894778906,144.12648575,178.68,178.61,102.4]
[1753894779206,3.12,178.67,178.61,102.4]
[1753894779407,3.12,178.65,178.61,102.4]
[1753894780908,5.5979,178.64,178.61,107.9987]
[1753894781110,3.12,178.63,178.61,107.9987]
[1753894781408,3.12,178.63,178.61,102.4]
[1753894781703,3.12,178.63,178.61,107.9985]
[1753894781909,8.7181,178.63,178.61,102.4]
[1753894782103,3.12,178.62,178.61,102.4]
[1753894782304,3.12,178.62,178.61,107.9987]
[1753894783113,3.12,178.64,178.63,5.5979]
[1753894783502,3.12,178.64,178.63,107.9779]
[1753894783704,3.12,178.69,178.63,106.73578822]
[1753894784108,5.5967,178.68,178.63,106.73578822]
[1753894784309,3.12,178.67,178.65,5.5972]
[1753894784616,3.12,178.68,178.66,102.38]
[1753894784806,3.12,178.74,178.66,102.38]
[1753894785006,7.47578822,178.74,178.66,102.38]
[1753894785209,5.5963,178.69,178.66,102.38]
[1753894785411,3.12,178.68,178.66,102.38]
[1753894785911,8.7168,178.67,178.66,102.38]
[1753894786105,3.12,178.69,178.63,102.38]
[1753894786910,5.5975,178.65,178.63,102.38]
[1753894787118,3.12,178.64,178.63,102.38]
[1753894787308,3.12,178.64,178.6,102.38]
[1753894787509,3.12,178.63,178.61,5.5985]
[1753894787810,3.12,178.67,178.61,4.35578822]
[1753894788410,3.12,178.67,178.63,4.35578822]
[1753894789012,3.12,178.67,178.65,5.5972]
[1753894790716,3.12,178.67,178.66,5.5971]
[1753894790912,3.12,178.67,178.64,102.38]
[1753894791412,3.12,178.67,178.65,5.5972]
[1753894794116,3.12,178.67,178.65,9.95298822]
[1753894794316,3.12,178.67,178.66,5.5971]
[1753894794619,106.73578822,178.75,178.66,5.5971]
[1753894794815,5.5953,178.72,178.69,5.5961]
[1753894795012,3.12,178.74,178.7,4.35578822]
[1753894795208,3.12,178.78,178.7,4.35578822]
[1753894795514,3.12,178.78,178.71,5.5953]
[1753894795820,3.12,178.72,178.7,4.35578822]
[1753894796217,3.12,178.72,178.7,9.95148822]
[1753894796617,3.12,178.71,178.7,9.95148822]
[1753894796814,3.12,178.72,178.7,4.35578822]
[1753894797016,3.12,178.71,178.7,4.35578822]
[1753894797417,3.12,178.71,178.7,9.95148822]
[1753894798118,5.595,178.73,178.7,9.95148822]
[1753894798412,3.12,178.71,178.7,9.95148822]
[1753894800114,3.18,178.73,178.7,4.35578822]
[1753894800420,3.18,178.79,178.72,4.35578822]
[1753894800619,3.18,178.79,178.73,102.34]
[1753894800820,4.35578822,178.82,178.74,9.95038822]
[1753894801019,3.18,178.77,178.74,4.35578822]
[1753894801219,3.18,178.77,178.73,102.34]
[1753894801420,3.18,178.75,178.73,107.9348]
[1753894802520,8.7744,178.75,178.73,102.34]
[1753894803116,8.7744,178.75,178.73,107.9349]
[1753894803326,4.35578822,178.77,178.7,4.35578822]
[1753894803518,3.18,178.76,178.7,4.35578822]
[1753894803823,3.18,178.72,178.7,9.95168822]
[1753894804013,3.18,178.71,178.7,9.95168822]
[1753894804522,3.18,178.71,178.7,4.35578822]
[1753894805320,3.18,178.71,178.69,102.34]
[1753894806023,3.18,178.71,178.56,4.35578822]
[1753894806227,3.18,178.71,178.64,4.35578822]
[1753894806523,3.18,178.71,178.65,102.32]
[1753894806718,4.35578822,178.72,178.65,102.32]
[1753894806719,3.18,178.69,178.65,102.32]
[1753894807523,3.18,178.67,178.65,107.9172]
[1753894807824,3.18,178.67,178.65,102.32]
[1753894808017,3.18,178.66,178.65,102.32]
[1753894810525,3.18,178.66,178.65,107.9174]
[1753894810724,3.18,178.66,178.65,102.32]
[1753894812526,8.7771,178.66,178.65,102.32]
[1753894813126,3.18,178.66,178.65,102.32]
[1753894814426,3.18,178.66,178.65,107.9174]
[1753894814925,3.18,178.66,178.65,102.32]
[1753894816328,3.18,178.66,178.65,107.9174]
[1753894817119,3.18,178.66,178.65,102.32]
[1753894817827,3.18,178.66,178.65,107.9174]
[1753894820228,3.18,178.67,178.65,107.9174]
[1753894820422,3.18,178.7,178.65,102.32]
[1753894820828,4.35578822,178.73,178.67,5.5965]
[1753894821127,3.18,178.69,178.67,5.5965]